[Event "Titled Tuesday Blitz February 22 Late 2022"]
[White "Van den Dikkenberg, Erik"]
[Black "Farmani Anosheh, Armin"]
[WhiteFideId "1005880"]
[BlackFideId "24613240"]
[WhiteElo "2118"]
[BlackElo "2289"]
[Result "1/2-1/2"]
[Round "11"]
[TimeControl "180+1"]
[Date "2022.02.23"]
[WhiteClock "0:00:22"]
[BlackClock "0:01:03"]

1. e4 {[%clk 0:03:00]}  c5 {[%clk 0:02:59]} 2. Nc3 {[%clk 0:03:00]}  Nc6 {[%clk 0:02:59]} 3. Bb5 {[%clk 0:02:59]}  Nd4 {[%clk 0:02:58]} 4. Nf3 {[%clk 0:02:59]}  a6 {[%clk 0:02:59]} 5. Bd3 {[%clk 0:02:57]}  g6 {[%clk 0:02:59]} 6. O-O {[%clk 0:02:57]}  Bg7 {[%clk 0:02:59]} 7. Nxd4 {[%clk 0:02:56]}  cxd4 {[%clk 0:02:59]} 8. Ne2 {[%clk 0:02:54]}  d5 {[%clk 0:02:53]} 9. exd5 {[%clk 0:02:47]}  Qxd5 {[%clk 0:02:53]} 10. c3 {[%clk 0:02:38]}  dxc3 {[%clk 0:02:44]} 11. dxc3 {[%clk 0:02:38]}  Nf6 {[%clk 0:02:44]} 12. a4 {[%clk 0:02:30]}  O-O {[%clk 0:02:44]} 13. Qc2 {[%clk 0:02:18]}  Rd8 {[%clk 0:02:40]} 14. Rd1 {[%clk 0:02:05]}  Bf5 {[%clk 0:02:33]} 15. Nf4 {[%clk 0:02:01]}  Bxd3 {[%clk 0:02:33]} 16. Rxd3 {[%clk 0:01:56]}  Qf5 {[%clk 0:02:33]} 17. Rxd8+ {[%clk 0:01:55]}  Rxd8 {[%clk 0:02:32]} 18. Qe2 {[%clk 0:01:43]}  e5 {[%clk 0:02:30]} 19. Nh3 {[%clk 0:01:32]}  h6 {[%clk 0:02:29]} 20. Be3 {[%clk 0:01:30]}  Ng4 {[%clk 0:02:23]} 21. Bb6 {[%clk 0:01:22]}  Rd6 {[%clk 0:02:19]} 22. a5 {[%clk 0:01:21]}  e4 {[%clk 0:02:17]} 23. Rd1 {[%clk 0:01:15]}  Rd3 {[%clk 0:02:11]} 24. Re1 {[%clk 0:01:10]}  Rxh3 {[%clk 0:01:51]} 25. gxh3 {[%clk 0:01:06]}  Ne5 {[%clk 0:01:51]} 26. Qxe4 {[%clk 0:01:03]}  Nf3+ {[%clk 0:01:51]} 27. Kg2 {[%clk 0:01:00]}  Nxe1+ {[%clk 0:01:50]} 28. Qxe1 {[%clk 0:01:00]}  Be5 {[%clk 0:01:46]} 29. Qe3 {[%clk 0:00:54]}  Kg7 {[%clk 0:01:38]} 30. Bd4 {[%clk 0:00:52]}  Bxd4 {[%clk 0:01:38]} 31. Qxd4+ {[%clk 0:00:53]}  Kh7 {[%clk 0:01:39]} 32. f3 {[%clk 0:00:49]}  Qc2+ {[%clk 0:01:39]} 33. Qf2 {[%clk 0:00:48]}  Qb3 {[%clk 0:01:37]} 34. Qb6 {[%clk 0:00:47]}  Qd5 {[%clk 0:01:33]} 35. Qd4 {[%clk 0:00:43]}  Qxa5 {[%clk 0:01:31]} 36. Qf6 {[%clk 0:00:41]}  Qd5 {[%clk 0:01:31]} 37. b4 {[%clk 0:00:36]}  Qd2+ {[%clk 0:01:28]} 38. Kg3 {[%clk 0:00:36]}  Qg5+ {[%clk 0:01:27]} 39. Qxg5 {[%clk 0:00:32]}  hxg5 {[%clk 0:01:28]} 40. Kg4 {[%clk 0:00:33]}  Kh6 {[%clk 0:01:24]} 41. h4 {[%clk 0:00:28]}  f5+ {[%clk 0:01:24]} 42. Kg3 {[%clk 0:00:27]}  gxh4+ {[%clk 0:01:02]} 43. Kxh4 {[%clk 0:00:27]}  g5+ {[%clk 0:01:03]} 44. Kg3 {[%clk 0:00:27]}  b5 {[%clk 0:01:04]} 45. h4 {[%clk 0:00:25]}  gxh4+ {[%clk 0:01:01]} 46. Kxh4 {[%clk 0:00:25]}  Kg6 {[%clk 0:01:01]} 47. f4 {[%clk 0:00:22]}  Kh6 {[%clk 0:01:02]} 48. Kg3 {[%clk 0:00:21]}  Kh5 {[%clk 0:01:01]} 49. Kh3 {[%clk 0:00:21]}  Kg6 {[%clk 0:01:02]} 50. Kh4 {[%clk 0:00:21]}  Kh6 {[%clk 0:01:02]} 51. Kg3 {[%clk 0:00:21]}  Kh5 {[%clk 0:01:02]} 52. Kh3 {[%clk 0:00:22]}  Kg6 {[%clk 0:01:03]} 53. Kh4 {[%clk 0:00:22]} 1/2-1/2


[Site "https://www.chess.com"]

[Event "Titled Tuesday Blitz February 22 Late 2022"]
[White "Virtanen, Teemu"]
[Black "Yuan, Qingyu"]
[WhiteFideId "509850"]
[BlackFideId "8609772"]
[WhiteElo "1926"]
[BlackElo "2359"]
[Result "1-0"]
[Round "11"]
[TimeControl "180+1"]
[Date "2022.02.22"]
[WhiteClock "0:00:09"]
[BlackClock "0:00:05"]

1. c4 {[%clk 0:03:00]}  e6 {[%clk 0:03:00]} 2. Nc3 {[%clk 0:03:00]}  d5 {[%clk 0:03:00]} 3. e3 {[%clk 0:03:01]}  Nf6 {[%clk 0:03:00]} 4. Nf3 {[%clk 0:03:01]}  Nbd7 {[%clk 0:03:01]} 5. b3 {[%clk 0:03:01]}  Bd6 {[%clk 0:02:52]} 6. Bb2 {[%clk 0:03:01]}  O-O {[%clk 0:02:51]} 7. Qc2 {[%clk 0:03:00]}  a6 {[%clk 0:02:51]} 8. g4 {[%clk 0:02:55]}  dxc4 {[%clk 0:02:39]} 9. bxc4 {[%clk 0:02:50]}  Nxg4 {[%clk 0:02:35]} 10. Rg1 {[%clk 0:02:49]}  f5 {[%clk 0:02:35]} 11. Ne2 {[%clk 0:02:21]}  b5 {[%clk 0:02:07]} 12. Ned4 {[%clk 0:02:00]}  Nc5 {[%clk 0:01:57]} 13. h3 {[%clk 0:01:49]}  Nf6 {[%clk 0:01:54]} 14. cxb5 {[%clk 0:01:41]}  Nce4 {[%clk 0:01:44]} 15. Bc4 {[%clk 0:01:34]}  Qe8 {[%clk 0:01:33]} 16. Nxf5 {[%clk 0:01:25]}  axb5 {[%clk 0:01:23]} 17. Nxg7 {[%clk 0:01:15]}  Qf7 {[%clk 0:01:11]} 18. Bd3 {[%clk 0:00:36]}  Bb7 {[%clk 0:00:41]} 19. Bxe4 {[%clk 0:00:19]}  Bxe4 {[%clk 0:00:39]} 20. Nxe6+ {[%clk 0:00:19]}  Kh8 {[%clk 0:00:39]} 21. Qxe4 {[%clk 0:00:19]}  Rae8 {[%clk 0:00:34]} 22. Nfg5 {[%clk 0:00:17]}  Qh5 {[%clk 0:00:35]} 23. Qf5 {[%clk 0:00:16]}  Be7 {[%clk 0:00:21]} 24. Nxf8 {[%clk 0:00:16]}  Rxf8 {[%clk 0:00:21]} 25. Be5 {[%clk 0:00:13]}  h6 {[%clk 0:00:22]} 26. Rc1 {[%clk 0:00:10]}  hxg5 {[%clk 0:00:22]} 27. Qxg5 {[%clk 0:00:10]}  Qh7 {[%clk 0:00:21]} 28. Rxc7 {[%clk 0:00:10]}  b4 {[%clk 0:00:08]} 29. Rxe7 {[%clk 0:00:08]}  Qxe7 {[%clk 0:00:06]} 30. Qh6+ {[%clk 0:00:08]}  Qh7 {[%clk 0:00:05]} 31. Qxf8+ {[%clk 0:00:09]} 1-0


[Site "https://www.chess.com"]

[Event "Titled Tuesday Blitz February 22 Late 2022"]
[White "Yordanov, Nikolay Plamenov"]
[Black "Kim, Sergey"]
[WhiteFideId "2907445"]
[BlackFideId "13700570"]
[WhiteElo "2248"]
[BlackElo "2619"]
[Result "0-1"]
[Round "11"]
[TimeControl "180+1"]
[Date "2022.02.22"]
[WhiteClock "0:00:01"]
[BlackClock "0:00:22"]

1. d4 {[%clk 0:02:58]}  Nf6 {[%clk 0:02:58]} 2. Bf4 {[%clk 0:02:57]}  g6 {[%clk 0:02:58]} 3. e3 {[%clk 0:02:57]}  d6 {[%clk 0:02:58]} 4. h3 {[%clk 0:02:57]}  Bg7 {[%clk 0:02:58]} 5. Nf3 {[%clk 0:02:57]}  O-O {[%clk 0:02:58]} 6. Be2 {[%clk 0:02:58]}  Nbd7 {[%clk 0:02:58]} 7. O-O {[%clk 0:02:58]}  b6 {[%clk 0:02:58]} 8. c4 {[%clk 0:02:57]}  Bb7 {[%clk 0:02:58]} 9. Nc3 {[%clk 0:02:58]}  Ne4 {[%clk 0:02:58]} 10. Nxe4 {[%clk 0:02:57]}  Bxe4 {[%clk 0:02:58]} 11. Nd2 {[%clk 0:02:58]}  Bb7 {[%clk 0:02:58]} 12. Bf3 {[%clk 0:02:58]}  Qc8 {[%clk 0:02:59]} 13. Bxb7 {[%clk 0:02:56]}  Qxb7 {[%clk 0:03:00]} 14. Nf3 {[%clk 0:02:55]}  Rfd8 {[%clk 0:02:50]} 15. Qc2 {[%clk 0:02:54]}  e5 {[%clk 0:02:49]} 16. dxe5 {[%clk 0:02:45]}  dxe5 {[%clk 0:02:49]} 17. Bg3 {[%clk 0:02:41]}  f6 {[%clk 0:02:49]} 18. Rfd1 {[%clk 0:02:41]}  Nc5 {[%clk 0:02:48]} 19. Rxd8+ {[%clk 0:02:29]}  Rxd8 {[%clk 0:02:47]} 20. Rd1 {[%clk 0:02:30]}  Rd6 {[%clk 0:02:42]} 21. Rxd6 {[%clk 0:02:19]}  cxd6 {[%clk 0:02:41]} 22. Nd2 {[%clk 0:02:19]}  Qc6 {[%clk 0:02:33]} 23. b4 {[%clk 0:02:16]}  Ne6 {[%clk 0:02:28]} 24. Qb3 {[%clk 0:02:12]}  Kf7 {[%clk 0:02:26]} 25. f3 {[%clk 0:01:58]}  f5 {[%clk 0:02:23]} 26. Bf2 {[%clk 0:01:58]}  Bh6 {[%clk 0:02:18]} 27. Nb1 {[%clk 0:01:46]}  Ke7 {[%clk 0:02:11]} 28. Nc3 {[%clk 0:01:45]}  Nc7 {[%clk 0:02:10]} 29. e4 {[%clk 0:01:42]}  Bd2 {[%clk 0:01:50]} 30. Nd5+ {[%clk 0:01:36]}  Nxd5 {[%clk 0:01:48]} 31. exd5 {[%clk 0:01:36]}  Qc7 {[%clk 0:01:42]} 32. a3 {[%clk 0:01:30]}  Bg5 {[%clk 0:01:38]} 33. c5 {[%clk 0:01:13]}  bxc5 {[%clk 0:01:36]} 34. bxc5 {[%clk 0:01:14]}  dxc5 {[%clk 0:01:36]} 35. Qb5 {[%clk 0:00:52]}  Kd6 {[%clk 0:01:29]} 36. Qa6+ {[%clk 0:00:32]}  Qb6 {[%clk 0:01:24]} 37. Qc8 {[%clk 0:00:24]}  Kxd5 {[%clk 0:01:22]} 38. Qd7+ {[%clk 0:00:22]}  Kc4 {[%clk 0:01:20]} 39. Qd1 {[%clk 0:00:19]}  Qb3 {[%clk 0:01:08]} 40. Qe2+ {[%clk 0:00:18]}  Qd3 {[%clk 0:01:04]} 41. Qa2+ {[%clk 0:00:18]}  Kb5 {[%clk 0:01:00]} 42. a4+ {[%clk 0:00:15]}  Kc6 {[%clk 0:00:53]} 43. Qe6+ {[%clk 0:00:15]}  Qd6 {[%clk 0:00:52]} 44. Qe8+ {[%clk 0:00:15]}  Kd5 {[%clk 0:00:52]} 45. Qf7+ {[%clk 0:00:12]}  Qe6 {[%clk 0:00:49]} 46. Qb7+ {[%clk 0:00:12]}  Qc6 {[%clk 0:00:47]} 47. Qb3+ {[%clk 0:00:12]}  c4 {[%clk 0:00:45]} 48. Qd1+ {[%clk 0:00:12]}  Ke6 {[%clk 0:00:45]} 49. Qc2 {[%clk 0:00:08]}  Bf4 {[%clk 0:00:42]} 50. a5 {[%clk 0:00:08]}  Qd5 {[%clk 0:00:41]} 51. g3 {[%clk 0:00:08]}  Bd2 {[%clk 0:00:38]} 52. Kg2 {[%clk 0:00:08]}  Bxa5 {[%clk 0:00:37]} 53. Qa4 {[%clk 0:00:07]}  Ke7 {[%clk 0:00:33]} 54. Qa3+ {[%clk 0:00:04]}  Kd7 {[%clk 0:00:30]} 55. Qa4+ {[%clk 0:00:05]}  Kc7 {[%clk 0:00:30]} 56. Qe8 {[%clk 0:00:04]}  Kb7 {[%clk 0:00:26]} 57. Qe7+ {[%clk 0:00:04]}  Bc7 {[%clk 0:00:25]} 58. Qb4+ {[%clk 0:00:03]}  Bb6 {[%clk 0:00:24]} 59. Qe7+ {[%clk 0:00:03]}  Ka6 {[%clk 0:00:24]} 60. Qa3+ {[%clk 0:00:03]}  Kb7 {[%clk 0:00:24]} 61. Qe7+ {[%clk 0:00:03]}  Bc7 {[%clk 0:00:24]} 62. Qb4+ {[%clk 0:00:03]}  Kc8 {[%clk 0:00:23]} 63. Qf8+ {[%clk 0:00:03]}  Bd8 {[%clk 0:00:22]} 64. Qb4 {[%clk 0:00:02]}  e4 {[%clk 0:00:21]} 65. fxe4 {[%clk 0:00:01]}  Qxe4+ {[%clk 0:00:21]} 66. Kh2 {[%clk 0:00:01]}  Qc6 {[%clk 0:00:22]} 0-1


[Site "https://www.chess.com"]

[Event "Titled Tuesday Blitz February 22 Late 2022"]
[White "Zakhartsov, Vladimir"]
[Black "Sharafiev, Azat"]
[WhiteFideId "4145097"]
[BlackFideId "4186214"]
[WhiteElo "2432"]
[BlackElo "2299"]
[Result "1-0"]
[Round "11"]
[TimeControl "180+1"]
[Date "2022.02.22"]
[WhiteClock "0:00:05"]
[BlackClock "0:00:03"]

1. e4 {[%clk 0:03:00]}  c5 {[%clk 0:02:59]} 2. Nf3 {[%clk 0:02:59]}  e6 {[%clk 0:03:00]} 3. g3 {[%clk 0:02:58]}  Nc6 {[%clk 0:02:57]} 4. Bg2 {[%clk 0:02:58]}  d5 {[%clk 0:02:58]} 5. exd5 {[%clk 0:02:59]}  exd5 {[%clk 0:02:59]} 6. d4 {[%clk 0:02:59]}  Bg4 {[%clk 0:02:55]} 7. O-O {[%clk 0:02:58]}  Nxd4 {[%clk 0:02:55]} 8. Qe1+ {[%clk 0:02:55]}  Be7 {[%clk 0:02:52]} 9. Nxd4 {[%clk 0:02:43]}  cxd4 {[%clk 0:02:52]} 10. Qe5 {[%clk 0:02:43]}  Nf6 {[%clk 0:02:49]} 11. Re1 {[%clk 0:02:41]}  d3 {[%clk 0:02:46]} 12. cxd3 {[%clk 0:02:11]}  Be6 {[%clk 0:02:46]} 13. Nc3 {[%clk 0:02:09]}  O-O {[%clk 0:02:46]} 14. Bf4 {[%clk 0:02:04]}  Re8 {[%clk 0:02:38]} 15. Nb5 {[%clk 0:01:59]}  Ng4 {[%clk 0:02:01]} 16. Qc7 {[%clk 0:01:55]}  g5 {[%clk 0:01:25]} 17. Qxd8 {[%clk 0:01:47]}  Rexd8 {[%clk 0:01:23]} 18. Bc7 {[%clk 0:01:38]}  Rd7 {[%clk 0:01:20]} 19. Ba5 {[%clk 0:01:38]}  Bc5 {[%clk 0:00:26]} 20. d4 {[%clk 0:01:35]}  Bb6 {[%clk 0:00:26]} 21. Bxb6 {[%clk 0:01:30]}  axb6 {[%clk 0:00:26]} 22. a3 {[%clk 0:01:25]}  h6 {[%clk 0:00:17]} 23. Nc3 {[%clk 0:01:24]}  Nf6 {[%clk 0:00:15]} 24. Rac1 {[%clk 0:01:24]}  Kg7 {[%clk 0:00:13]} 25. Bf1 {[%clk 0:01:22]}  Rc7 {[%clk 0:00:12]} 26. Nb5 {[%clk 0:01:21]}  Rxc1 {[%clk 0:00:12]} 27. Rxc1 {[%clk 0:01:22]}  Rc8 {[%clk 0:00:09]} 28. Rxc8 {[%clk 0:01:21]}  Bxc8 {[%clk 0:00:10]} 29. Nd6 {[%clk 0:01:22]}  Bd7 {[%clk 0:00:08]} 30. Nxb7 {[%clk 0:01:20]}  Ne8 {[%clk 0:00:09]} 31. b4 {[%clk 0:00:50]}  Bc6 {[%clk 0:00:08]} 32. Nd8 {[%clk 0:00:50]}  Bd7 {[%clk 0:00:03]} 33. Bg2 {[%clk 0:00:43]}  Nc7 {[%clk 0:00:03]} 34. Nb7 {[%clk 0:00:40]}  Kf6 {[%clk 0:00:03]} 35. g4 {[%clk 0:00:15]}  Ke7 {[%clk 0:00:02]} 36. h3 {[%clk 0:00:01]}  Bc6 {[%clk 0:00:02]} 37. Nc5 {[%clk 0:00:02]}  bxc5 {[%clk 0:00:03]} 38. dxc5 {[%clk 0:00:03]}  Kd7 {[%clk 0:00:03]} 39. Kf1 {[%clk 0:00:03]}  Ba4 {[%clk 0:00:03]} 40. Ke2 {[%clk 0:00:02]}  Kc6 {[%clk 0:00:04]} 41. Ke3 {[%clk 0:00:02]}  Nb5 {[%clk 0:00:04]} 42. f4 {[%clk 0:00:03]}  Nxa3 {[%clk 0:00:04]} 43. fxg5 {[%clk 0:00:02]}  hxg5 {[%clk 0:00:05]} 44. Kd4 {[%clk 0:00:03]}  Nc2+ {[%clk 0:00:05]} 45. Ke5 {[%clk 0:00:03]}  Nxb4 {[%clk 0:00:05]} 46. Kf6 {[%clk 0:00:04]}  Kxc5 {[%clk 0:00:05]} 47. Kxg5 {[%clk 0:00:03]}  d4 {[%clk 0:00:06]} 48. h4 {[%clk 0:00:03]}  d3 {[%clk 0:00:06]} 49. Kf6 {[%clk 0:00:03]}  Bc6 {[%clk 0:00:06]} 50. Bf1 {[%clk 0:00:02]}  d2 {[%clk 0:00:06]} 51. Be2 {[%clk 0:00:03]}  Bd5 {[%clk 0:00:07]} 52. h5 {[%clk 0:00:03]}  Nc2 {[%clk 0:00:06]} 53. h6 {[%clk 0:00:03]}  Nd4 {[%clk 0:00:06]} 54. Bd1 {[%clk 0:00:03]}  Be4 {[%clk 0:00:05]} 55. Kxf7 {[%clk 0:00:03]}  Kb4 {[%clk 0:00:04]} 56. Kg7 {[%clk 0:00:03]}  Ne6+ {[%clk 0:00:04]} 57. Kf6 {[%clk 0:00:03]}  Nf4 {[%clk 0:00:03]} 58. Kg7 {[%clk 0:00:04]}  Ne6+ {[%clk 0:00:03]} 59. Kf6 {[%clk 0:00:04]}  Nf4 {[%clk 0:00:04]} 60. Ke5 {[%clk 0:00:04]}  Nd3+ {[%clk 0:00:02]} 61. Kxe4 {[%clk 0:00:04]}  Nf2+ {[%clk 0:00:02]} 62. Ke3 {[%clk 0:00:04]}  Nxd1+ {[%clk 0:00:03]} 63. Kxd2 {[%clk 0:00:05]}  Nf2 {[%clk 0:00:03]} 64. h7 {[%clk 0:00:05]} 1-0


[Site "https://www.chess.com"]

[Event "Titled Tuesday Blitz February 22 Late 2022"]
[White "Zong, Davis"]
[Black "Garagulya, Konstantin"]
[WhiteFideId "30903955"]
[BlackFideId "4128931"]
[WhiteElo "2061"]
[BlackElo "2329"]
[Result "0-1"]
[Round "11"]
[TimeControl "180+1"]
[Date "2022.02.23"]
[WhiteClock "0:00:02"]
[BlackClock "0:00:04"]

1. d4 {[%clk 0:03:00]}  Nf6 {[%clk 0:02:59]} 2. c4 {[%clk 0:03:01]}  e6 {[%clk 0:02:59]} 3. g3 {[%clk 0:03:01]}  d5 {[%clk 0:03:00]} 4. Bg2 {[%clk 0:03:01]}  Bb4+ {[%clk 0:03:01]} 5. Nd2 {[%clk 0:02:59]}  a5 {[%clk 0:03:00]} 6. a3 {[%clk 0:02:57]}  Be7 {[%clk 0:02:58]} 7. Ngf3 {[%clk 0:02:57]}  a4 {[%clk 0:02:58]} 8. O-O {[%clk 0:02:57]}  O-O {[%clk 0:02:55]} 9. Qc2 {[%clk 0:02:52]}  c6 {[%clk 0:02:48]} 10. e4 {[%clk 0:02:52]}  dxe4 {[%clk 0:02:46]} 11. Nxe4 {[%clk 0:02:52]}  Nxe4 {[%clk 0:02:40]} 12. Qxe4 {[%clk 0:02:53]}  Nd7 {[%clk 0:02:40]} 13. Bf4 {[%clk 0:02:50]}  Qb6 {[%clk 0:02:37]} 14. Qc2 {[%clk 0:02:35]}  Rd8 {[%clk 0:02:24]} 15. Ng5 {[%clk 0:02:21]}  Nf8 {[%clk 0:02:17]} 16. c5 {[%clk 0:02:02]}  Qb5 {[%clk 0:01:52]} 17. Rfd1 {[%clk 0:02:01]}  Qa5 {[%clk 0:01:31]} 18. Ne4 {[%clk 0:01:56]}  Ng6 {[%clk 0:01:20]} 19. Bd6 {[%clk 0:01:52]}  Bd7 {[%clk 0:01:15]} 20. h4 {[%clk 0:01:46]}  Bxd6 {[%clk 0:00:59]} 21. Nxd6 {[%clk 0:01:45]}  Rab8 {[%clk 0:00:58]} 22. h5 {[%clk 0:01:36]}  Ne7 {[%clk 0:00:49]} 23. h6 {[%clk 0:01:36]}  gxh6 {[%clk 0:00:45]} 24. Qc1 {[%clk 0:01:30]}  Kg7 {[%clk 0:00:43]} 25. Qf4 {[%clk 0:01:29]}  Rf8 {[%clk 0:00:38]} 26. Nc4 {[%clk 0:00:56]}  Qd8 {[%clk 0:00:30]} 27. Ne5 {[%clk 0:00:55]}  Ng6 {[%clk 0:00:23]} 28. Qg4 {[%clk 0:00:54]}  Qe7 {[%clk 0:00:19]} 29. f4 {[%clk 0:00:42]}  Rbd8 {[%clk 0:00:18]} 30. Re1 {[%clk 0:00:39]}  Bc8 {[%clk 0:00:17]} 31. Qf3 {[%clk 0:00:25]}  Rxd4 {[%clk 0:00:16]} 32. f5 {[%clk 0:00:20]}  exf5 {[%clk 0:00:11]} 33. Nxg6 {[%clk 0:00:19]}  Qxc5 {[%clk 0:00:11]} 34. Nxf8 {[%clk 0:00:13]}  Qxf8 {[%clk 0:00:06]} 35. Rad1 {[%clk 0:00:11]}  c5 {[%clk 0:00:04]} 36. Rxd4 {[%clk 0:00:11]}  cxd4 {[%clk 0:00:05]} 37. Qf4 {[%clk 0:00:11]}  Qc5 {[%clk 0:00:04]} 38. Qe5+ {[%clk 0:00:12]}  Qxe5 {[%clk 0:00:05]} 39. Rxe5 {[%clk 0:00:13]}  Be6 {[%clk 0:00:05]} 40. Bd5 {[%clk 0:00:12]}  Kf6 {[%clk 0:00:05]} 41. Rxe6+ {[%clk 0:00:10]}  fxe6 {[%clk 0:00:05]} 42. Bc4 {[%clk 0:00:10]}  e5 {[%clk 0:00:04]} 43. Kf2 {[%clk 0:00:11]}  e4 {[%clk 0:00:04]} 44. Bd5 {[%clk 0:00:11]}  b6 {[%clk 0:00:04]} 45. Bc6 {[%clk 0:00:11]}  Ke5 {[%clk 0:00:03]} 46. Bxa4 {[%clk 0:00:11]}  f4 {[%clk 0:00:04]} 47. gxf4+ {[%clk 0:00:11]}  Kxf4 {[%clk 0:00:05]} 48. Bc6 {[%clk 0:00:04]}  h5 {[%clk 0:00:05]} 49. a4 {[%clk 0:00:03]}  h4 {[%clk 0:00:05]} 50. b4 {[%clk 0:00:04]}  Ke5 {[%clk 0:00:04]} 51. a5 {[%clk 0:00:04]}  bxa5 {[%clk 0:00:04]} 52. bxa5 {[%clk 0:00:04]}  e3+ {[%clk 0:00:05]} 53. Ke2 {[%clk 0:00:04]}  Kd6 {[%clk 0:00:06]} 54. Be4 {[%clk 0:00:04]}  Kc5 {[%clk 0:00:05]} 55. Kd3 {[%clk 0:00:01]}  h3 {[%clk 0:00:05]} 56. Bf3 {[%clk 0:00:01]}  h2 {[%clk 0:00:04]} 57. a6 {[%clk 0:00:01]}  Kb6 {[%clk 0:00:04]} 58. Kxd4 {[%clk 0:00:01]}  e2 {[%clk 0:00:05]} 59. Bxe2 {[%clk 0:00:01]}  h1=Q {[%clk 0:00:05]} 60. Ke3 {[%clk 0:00:02]}  Qh3+ {[%clk 0:00:04]} 0-1